[Event "Late-Titled-Tuesday-Blitz-October-10-2023"]
[Site "Chess.com"]
[Date "2023.10.10"]
[Round "5"]
[White "Vamostodorecto"]
[Black "AlleyOoper"]
[Result "0-1"]
[WhiteElo "2431"]
[BlackElo "2592"]
[TimeControl "180+1"]
[EndTime "14:53:20 PDT"]
[Termination "AlleyOoper won by resignation"]

1. d4 {[%clk 0:02:52.1]} 1... Nf6 {[%clk 0:02:57.2]} 2. c4 {[%clk 0:02:52.7]}
2... c5 {[%clk 0:02:57.6]} 3. d5 {[%clk 0:02:52]} 3... g6 {[%clk 0:02:58]} 4.
Nc3 {[%clk 0:02:51.4]} 4... Bg7 {[%clk 0:02:58.1]} 5. e4 {[%clk 0:02:52]} 5...
d6 {[%clk 0:02:58.1]} 6. f4 {[%clk 0:02:51.3]} 6... O-O {[%clk 0:02:57.7]} 7.
Nf3 {[%clk 0:02:52.1]} 7... Bg4 {[%clk 0:02:57.3]} 8. Be2 {[%clk 0:02:52.5]}
8... e6 {[%clk 0:02:55.8]} 9. O-O {[%clk 0:02:53.1]} 9... exd5 {[%clk
0:02:56.1]} 10. cxd5 {[%clk 0:02:52.5]} 10... Re8 {[%clk 0:02:55.5]} 11. Nd2
{[%clk 0:02:50.6]} 11... Bxe2 {[%clk 0:02:54.8]} 12. Qxe2 {[%clk 0:02:51.5]}
12... Nbd7 {[%clk 0:02:54.1]} 13. Qf3 {[%clk 0:02:41.5]} 13... a6 {[%clk
0:02:46.7]} 14. a4 {[%clk 0:02:39.9]} 14... Rc8 {[%clk 0:02:34.6]} 15. Nc4
{[%clk 0:02:38.6]} 15... Nb6 {[%clk 0:02:34.3]} 16. Nxd6 {[%clk 0:02:13.2]}
16... Qxd6 {[%clk 0:02:28.5]} 17. e5 {[%clk 0:02:14.1]} 17... Qd7 {[%clk
0:02:22.3]} 18. exf6 {[%clk 0:02:15]} 18... Bxf6 {[%clk 0:02:21.5]} 19. a5
{[%clk 0:02:14.3]} 19... Nc4 {[%clk 0:02:18.8]} 20. Ne4 {[%clk 0:02:10]} 20...
Bd4+ {[%clk 0:02:11.9]} 21. Kh1 {[%clk 0:02:10.4]} 21... Rcd8 {[%clk 0:02:02.9]}
22. b3 {[%clk 0:01:50.8]} 22... Qxd5 {[%clk 0:01:57.2]} 23. Nf6+ {[%clk
0:01:28.7]} 23... Bxf6 {[%clk 0:01:55.9]} 24. Qxd5 {[%clk 0:01:29.6]} 24... Rxd5
{[%clk 0:01:54.4]} 25. bxc4 {[%clk 0:01:30.5]} 25... Bxa1 {[%clk 0:01:46.7]} 26.
cxd5 {[%clk 0:01:30.2]} 26... Rd8 {[%clk 0:01:45.5]} 27. Rd1 {[%clk 0:01:28.9]}
27... Bd4 {[%clk 0:01:45]} 28. Ba3 {[%clk 0:01:21.7]} 28... Rxd5 {[%clk
0:01:44.1]} 29. g3 {[%clk 0:01:22.2]} 29... h5 {[%clk 0:01:41.9]} 30. Kg2 {[%clk
0:01:10.2]} 30... Kg7 {[%clk 0:01:38.3]} 31. Kf3 {[%clk 0:01:10]} 31... Kf6
{[%clk 0:01:38.4]} 32. Ke4 {[%clk 0:01:09]} 32... Ke6 {[%clk 0:01:37.3]} 33. Rb1
{[%clk 0:01:01.1]} 33... f5+ {[%clk 0:01:17.9]} 34. Kf3 {[%clk 0:01:00.2]} 34...
Rd7 {[%clk 0:01:17.1]} 35. Rb6+ {[%clk 0:00:58.1]} 35... Kf7 {[%clk 0:01:17.3]}
36. Ke2 {[%clk 0:00:37.4]} 36... c4 {[%clk 0:01:10.9]} 37. Rb1 {[%clk
0:00:29.9]} 37... Rc7 {[%clk 0:01:03.3]} 38. Kd2 {[%clk 0:00:28.2]} 38... c3+
{[%clk 0:01:01.6]} 39. Kc2 {[%clk 0:00:28.2]} 39... Bf6 {[%clk 0:01:00.9]} 40.
Bd6 {[%clk 0:00:24.2]} 40... Rd7 {[%clk 0:01:01]} 41. Be5 {[%clk 0:00:22.8]}
41... Bxe5 {[%clk 0:00:57.5]} 42. fxe5 {[%clk 0:00:23.7]} 42... Ke6 {[%clk
0:00:51.3]} 43. Rb6+ {[%clk 0:00:23]} 43... Kxe5 {[%clk 0:00:51.7]} 44. Rxg6
{[%clk 0:00:23.7]} 44... Rc7 {[%clk 0:00:52.1]} 45. Rh6 {[%clk 0:00:22.7]} 45...
Rc5 {[%clk 0:00:46.7]} 46. Rxh5 {[%clk 0:00:13.9]} 46... Rxa5 {[%clk 0:00:46.5]}
47. g4 {[%clk 0:00:14.6]} 47... Kf4 {[%clk 0:00:42.9]} 48. g5 {[%clk 0:00:12.7]}
48... Kg4 {[%clk 0:00:41.4]} 49. Rh7 {[%clk 0:00:07.2]} 49... Kxg5 {[%clk
0:00:38.7]} 50. Rxb7 {[%clk 0:00:07.2]} 50... Ra2+ {[%clk 0:00:39.3]} 51. Kxc3
{[%clk 0:00:06.7]} 51... Rxh2 {[%clk 0:00:39.4]} 52. Ra7 {[%clk 0:00:06.1]}
52... Ra2 {[%clk 0:00:39.3]} 53. Kb3 {[%clk 0:00:06.8]} 53... Ra1 {[%clk
0:00:39.9]} 54. Kb2 {[%clk 0:00:06.2]} 54... Ra5 {[%clk 0:00:40]} 55. Kb3 {[%clk
0:00:05.8]} 55... Kf4 {[%clk 0:00:40.1]} 56. Kb4 {[%clk 0:00:04.8]} 56... Ra1
{[%clk 0:00:40.2]} 57. Kb3 {[%clk 0:00:03.5]} 57... Kf3 {[%clk 0:00:40.3]} 58.
Kb2 {[%clk 0:00:02.7]} 58... Ra5 {[%clk 0:00:40.4]} 59. Rf7 {[%clk 0:00:03.3]}
59... f4 {[%clk 0:00:40.8]} 60. Kc2 {[%clk 0:00:03.2]} 60... Rd5 {[%clk
0:00:40.3]} 61. Rf6 {[%clk 0:00:02.7]} 61... a5 {[%clk 0:00:40.5]} 62. Kc3
{[%clk 0:00:03.3]} 62... Ke3 {[%clk 0:00:40.8]} 63. Kc4 {[%clk 0:00:04.2]} 63...
Rd4+ {[%clk 0:00:40.7]} 64. Kc3 {[%clk 0:00:03.7]} 64... Re4 {[%clk 0:00:38.6]}
65. Rf7 {[%clk 0:00:01.6]} 65... f3 {[%clk 0:00:39]} 66. Rh7 {[%clk 0:00:02.3]}
66... f2 {[%clk 0:00:39.4]} 67. Rf7 {[%clk 0:00:02.9]} 67... Rf4 {[%clk
0:00:39.4]} 0-1

[Event "Late-Titled-Tuesday-Blitz-October-10-2023"]
[Site "Chess.com"]
[Date "2023.10.10"]
[Round "5"]
[White "Necromon"]
[Black "GMKrikor"]
[Result "1/2-1/2"]
[WhiteElo "2467"]
[BlackElo "2788"]
[TimeControl "180+1"]
[EndTime "14:53:21 PDT"]
[Termination "Game drawn by repetition"]

1. Nf3 {[%clk 0:03:00.9]} 1... d5 {[%clk 0:02:59.7]} 2. c4 {[%clk 0:03:00.8]}
2... d4 {[%clk 0:02:56.5]} 3. e3 {[%clk 0:03:00.5]} 3... Nc6 {[%clk 0:02:55.9]}
4. exd4 {[%clk 0:02:59.5]} 4... Nxd4 {[%clk 0:02:56.8]} 5. Nxd4 {[%clk
0:02:59.8]} 5... Qxd4 {[%clk 0:02:57.5]} 6. Nc3 {[%clk 0:02:56.1]} 6... c6
{[%clk 0:02:57.2]} 7. d3 {[%clk 0:02:56.5]} 7... Nh6 {[%clk 0:02:57.4]} 8. Be3
{[%clk 0:02:56.7]} 8... Qd8 {[%clk 0:02:57]} 9. Be2 {[%clk 0:02:52.4]} 9... Nf5
{[%clk 0:02:56.9]} 10. Bf4 {[%clk 0:02:51.1]} 10... g6 {[%clk 0:02:56.7]} 11.
O-O {[%clk 0:02:49.8]} 11... Bg7 {[%clk 0:02:57.2]} 12. Qd2 {[%clk 0:02:40.2]}
12... O-O {[%clk 0:02:56.2]} 13. Rab1 {[%clk 0:02:34.9]} 13... e5 {[%clk
0:02:45.4]} 14. Be3 {[%clk 0:02:27.4]} 14... Be6 {[%clk 0:02:45.4]} 15. Ne4
{[%clk 0:02:25.9]} 15... Nd4 {[%clk 0:02:41.8]} 16. Rfd1 {[%clk 0:02:10.2]}
16... b6 {[%clk 0:02:38]} 17. Bf1 {[%clk 0:02:07.3]} 17... Qd7 {[%clk 0:02:33]}
18. Bh6 {[%clk 0:02:05.8]} 18... f6 {[%clk 0:02:30.8]} 19. b4 {[%clk 0:01:59.8]}
19... Rad8 {[%clk 0:02:29.2]} 20. c5 {[%clk 0:01:58.4]} 20... Bxh6 {[%clk
0:02:09]} 21. Qxh6 {[%clk 0:01:57.7]} 21... Bxa2 {[%clk 0:02:09.1]} 22. Ra1
{[%clk 0:01:58.1]} 22... Bd5 {[%clk 0:02:08.9]} 23. Nd6 {[%clk 0:01:53.7]} 23...
a5 {[%clk 0:01:54.3]} 24. bxa5 {[%clk 0:01:43.1]} 24... bxc5 {[%clk 0:01:52.2]}
25. Ne4 {[%clk 0:01:43.4]} 25... c4 {[%clk 0:01:23.6]} 26. a6 {[%clk 0:01:18.5]}
26... Ra8 {[%clk 0:01:21]} 27. Qh4 {[%clk 0:01:00.7]} 27... Qe7 {[%clk
0:01:09.3]} 28. dxc4 {[%clk 0:01:00]} 28... g5 {[%clk 0:01:02.8]} 29. Qg4 {[%clk
0:00:58.5]} 29... h5 {[%clk 0:00:57.5]} 30. Qxh5 {[%clk 0:00:40.7]} 30... Bxe4
{[%clk 0:00:57.4]} 31. Bd3 {[%clk 0:00:41.4]} 31... Bxd3 {[%clk 0:00:50.1]} 32.
Rxd3 {[%clk 0:00:42.3]} 32... Qf7 {[%clk 0:00:49.2]} 33. Qg4 {[%clk 0:00:30.5]}
33... Kg7 {[%clk 0:00:44.2]} 34. Rc3 {[%clk 0:00:26.2]} 34... Rh8 {[%clk
0:00:43.4]} 35. h3 {[%clk 0:00:26.1]} 35... Rh4 {[%clk 0:00:42.6]} 36. Qd1
{[%clk 0:00:24.8]} 36... Rhh8 {[%clk 0:00:29.7]} 37. Qd3 {[%clk 0:00:18.3]}
37... Qg6 {[%clk 0:00:27.7]} 38. Qd1 {[%clk 0:00:14.3]} 38... Ra7 {[%clk
0:00:26.5]} 39. Rcc1 {[%clk 0:00:13.1]} 39... Rha8 {[%clk 0:00:24]} 40. Rcb1
{[%clk 0:00:13.6]} 40... Rxa6 {[%clk 0:00:19.1]} 41. Rb7+ {[%clk 0:00:13.8]}
41... Kh6 {[%clk 0:00:18.7]} 42. Rab1 {[%clk 0:00:13.8]} 42... Ra2 {[%clk
0:00:16.8]} 43. Rc7 {[%clk 0:00:09.3]} 43... Qf5 {[%clk 0:00:16.2]} 44. Kh2
{[%clk 0:00:07.5]} 44... Qf4+ {[%clk 0:00:15.5]} 45. Kh1 {[%clk 0:00:06.1]}
45... R8a7 {[%clk 0:00:04.9]} 46. Rc8 {[%clk 0:00:05.5]} 46... Ra8 {[%clk
0:00:04.1]} 47. Rc7 {[%clk 0:00:05.4]} 47... R2a7 {[%clk 0:00:04.7]} 48. Rxa7
{[%clk 0:00:05.6]} 48... Rxa7 {[%clk 0:00:05.6]} 49. Rb8 {[%clk 0:00:05.4]}
49... g4 {[%clk 0:00:05.1]} 50. Qb1 {[%clk 0:00:03.5]} 50... gxh3 {[%clk
0:00:02.5]} 51. Rh8+ {[%clk 0:00:03.3]} 51... Kg5 {[%clk 0:00:02.1]} 52. Rg8+
{[%clk 0:00:03.6]} 52... Kh6 {[%clk 0:00:01.8]} 53. Rh8+ {[%clk 0:00:03.9]}
53... Kg5 {[%clk 0:00:02.4]} 54. Rg8+ {[%clk 0:00:04.5]} 54... Kh5 {[%clk
0:00:02.1]} 55. Rh8+ {[%clk 0:00:04.2]} 55... Kg5 {[%clk 0:00:02.6]} 1/2-1/2

[Event "Late-Titled-Tuesday-Blitz-October-10-2023"]
[Site "Chess.com"]
[Date "2023.10.10"]
[Round "5"]
[White "GMMikhailKazakov"]
[Black "pedromartinez91"]
[Result "1/2-1/2"]
[WhiteElo "2375"]
[BlackElo "2543"]
[TimeControl "180+1"]
[EndTime "14:53:34 PDT"]
[Termination "Game drawn - insufficient material"]

1. e4 {[%clk 0:02:46.8]} 1... e5 {[%clk 0:02:56.8]} 2. Nf3 {[%clk 0:02:45]} 2...
Nc6 {[%clk 0:02:57]} 3. Bb5 {[%clk 0:02:43.8]} 3... Nf6 {[%clk 0:02:53.7]} 4. d3
{[%clk 0:02:43.3]} 4... Bc5 {[%clk 0:02:52.4]} 5. O-O {[%clk 0:02:41.9]} 5...
Nd4 {[%clk 0:02:52.3]} 6. Nxd4 {[%clk 0:02:40.6]} 6... Bxd4 {[%clk 0:02:53.2]}
7. c3 {[%clk 0:02:39.4]} 7... Bb6 {[%clk 0:02:53.7]} 8. Ba4 {[%clk 0:02:30.3]}
8... c6 {[%clk 0:02:48.7]} 9. Bc2 {[%clk 0:02:29.3]} 9... O-O {[%clk 0:02:44.9]}
10. d4 {[%clk 0:02:18.8]} 10... d6 {[%clk 0:02:43.6]} 11. f3 {[%clk 0:02:14.7]}
11... d5 {[%clk 0:02:38.8]} 12. Kh1 {[%clk 0:01:36.3]} 12... exd4 {[%clk
0:02:13.1]} 13. e5 {[%clk 0:01:34.7]} 13... d3 {[%clk 0:02:13.4]} 14. Qxd3
{[%clk 0:01:30.3]} 14... Ne4 {[%clk 0:01:42.7]} 15. fxe4 {[%clk 0:01:26.5]}
15... d4 {[%clk 0:01:43.2]} 16. Nd2 {[%clk 0:01:13.7]} 16... Be6 {[%clk
0:01:37]} 17. Nc4 {[%clk 0:01:10.8]} 17... Bc5 {[%clk 0:01:36.2]} 18. Nd6 {[%clk
0:01:02.1]} 18... Qb6 {[%clk 0:01:31.4]} 19. b4 {[%clk 0:00:35.9]} 19... Bxd6
{[%clk 0:01:31.6]} 20. exd6 {[%clk 0:00:36.8]} 20... c5 {[%clk 0:01:22.8]} 21.
e5 {[%clk 0:00:33.2]} 21... g6 {[%clk 0:01:22.1]} 22. bxc5 {[%clk 0:00:31.4]}
22... Qxc5 {[%clk 0:01:22.4]} 23. cxd4 {[%clk 0:00:31.8]} 23... Qa5 {[%clk
0:01:17.7]} 24. Qe3 {[%clk 0:00:24.2]} 24... Qb5 {[%clk 0:01:11.2]} 25. Bd3
{[%clk 0:00:20.1]} 25... Qa4 {[%clk 0:01:10.4]} 26. Qh6 {[%clk 0:00:18.2]} 26...
f5 {[%clk 0:00:52.6]} 27. Bg5 {[%clk 0:00:16.3]} 27... Qxd4 {[%clk 0:00:51.2]}
28. Bf6 {[%clk 0:00:15.1]} 28... Rxf6 {[%clk 0:00:50.8]} 29. exf6 {[%clk
0:00:14.4]} 29... Qxf6 {[%clk 0:00:51.7]} 30. Rad1 {[%clk 0:00:14.2]} 30... Rd8
{[%clk 0:00:45.1]} 31. Bc2 {[%clk 0:00:14.2]} 31... Bxa2 {[%clk 0:00:44]} 32.
Qd2 {[%clk 0:00:12.4]} 32... Be6 {[%clk 0:00:40.6]} 33. Rfe1 {[%clk 0:00:12.7]}
33... Kg7 {[%clk 0:00:40.1]} 34. Bb1 {[%clk 0:00:12.4]} 34... Qf7 {[%clk
0:00:38.5]} 35. Qd4+ {[%clk 0:00:12.3]} 35... Kg8 {[%clk 0:00:38.2]} 36. Qe5
{[%clk 0:00:12.7]} 36... Bb3 {[%clk 0:00:35.1]} 37. Rd2 {[%clk 0:00:12.2]} 37...
Rd7 {[%clk 0:00:32.5]} 38. h3 {[%clk 0:00:12.5]} 38... a5 {[%clk 0:00:29.3]} 39.
Rd4 {[%clk 0:00:12.6]} 39... a4 {[%clk 0:00:29.2]} 40. Rc1 {[%clk 0:00:12.7]}
40... Rd8 {[%clk 0:00:25.8]} 41. Rc7 {[%clk 0:00:12.3]} 41... Qf8 {[%clk
0:00:22.9]} 42. Re7 {[%clk 0:00:09.3]} 42... Bf7 {[%clk 0:00:19.5]} 43. Qa5
{[%clk 0:00:08.2]} 43... Rxd6 {[%clk 0:00:18]} 44. Rxd6 {[%clk 0:00:08.5]} 44...
Qxe7 {[%clk 0:00:17.9]} 45. Rd1 {[%clk 0:00:06]} 45... Bb3 {[%clk 0:00:16.7]}
46. Qd8+ {[%clk 0:00:05.4]} 46... Qxd8 {[%clk 0:00:16.4]} 47. Rxd8+ {[%clk
0:00:06.3]} 47... Kf7 {[%clk 0:00:16.8]} 48. Rb8 {[%clk 0:00:06.8]} 48... Bd5
{[%clk 0:00:16.6]} 49. Ra8 {[%clk 0:00:07.2]} 49... Bc6 {[%clk 0:00:16.9]} 50.
Ra7 {[%clk 0:00:07]} 50... Ke6 {[%clk 0:00:16.9]} 51. Bc2 {[%clk 0:00:07.5]}
51... b5 {[%clk 0:00:17.4]} 52. Ra6 {[%clk 0:00:07.6]} 52... Kd5 {[%clk
0:00:17.4]} 53. Kg1 {[%clk 0:00:06.9]} 53... Kc5 {[%clk 0:00:17.8]} 54. Kf2
{[%clk 0:00:06.5]} 54... Bd5 {[%clk 0:00:18.2]} 55. Ke3 {[%clk 0:00:06.2]} 55...
Bc4 {[%clk 0:00:18.5]} 56. Kd2 {[%clk 0:00:06.4]} 56... Bf1 {[%clk 0:00:18.7]}
57. g3 {[%clk 0:00:05.5]} 57... Bxh3 {[%clk 0:00:18.7]} 58. Ra7 {[%clk 0:00:06]}
58... Bg2 {[%clk 0:00:15.7]} 59. Rxh7 {[%clk 0:00:05]} 59... Bc6 {[%clk
0:00:16.2]} 60. Rg7 {[%clk 0:00:05.1]} 60... b4 {[%clk 0:00:16.8]} 61. Rxg6
{[%clk 0:00:05.1]} 61... b3 {[%clk 0:00:17.5]} 62. Bxf5 {[%clk 0:00:05.1]} 62...
a3 {[%clk 0:00:17.5]} 63. Rxc6+ {[%clk 0:00:04.8]} 63... Kxc6 {[%clk 0:00:17.5]}
64. Kc3 {[%clk 0:00:05.4]} 64... a2 {[%clk 0:00:15.1]} 65. Kb2 {[%clk
0:00:05.1]} 65... Kd6 {[%clk 0:00:15.8]} 66. g4 {[%clk 0:00:05.3]} 66... Ke5
{[%clk 0:00:16.7]} 67. Bd3 {[%clk 0:00:04.2]} 67... Kf4 {[%clk 0:00:16.7]} 68.
Be2 {[%clk 0:00:04.7]} 68... Kg5 {[%clk 0:00:17]} 69. Bd1 {[%clk 0:00:05.2]}
69... Kf4 {[%clk 0:00:17.2]} 70. Be2 {[%clk 0:00:05.8]} 70... Kg5 {[%clk
0:00:17.8]} 71. Bf3 {[%clk 0:00:06.3]} 71... Kf4 {[%clk 0:00:18.4]} 72. Bd1
{[%clk 0:00:06.5]} 72... Kg5 {[%clk 0:00:18.9]} 73. Ka1 {[%clk 0:00:07.4]} 73...
Kf4 {[%clk 0:00:19.2]} 74. Bxb3 {[%clk 0:00:07.3]} 74... Kxg4 {[%clk 0:00:18.7]}
75. Bd1+ {[%clk 0:00:08.2]} 75... Kf4 {[%clk 0:00:19.1]} 76. Kxa2 {[%clk
0:00:09.1]} 1/2-1/2

[Event "Late-Titled-Tuesday-Blitz-October-10-2023"]
[Site "Chess.com"]
[Date "2023.10.10"]
[Round "5"]
[White "FaustinoOro"]
[Black "Chesstrainer1"]
[Result "1-0"]
[WhiteElo "2867"]
[BlackElo "2466"]
[TimeControl "180+1"]
[EndTime "14:53:34 PDT"]
[Termination "FaustinoOro won on time"]

1. d4 {[%clk 0:03:00.9]} 1... Nf6 {[%clk 0:02:57.2]} 2. Nf3 {[%clk 0:02:59.4]}
2... e6 {[%clk 0:02:46.3]} 3. Bg5 {[%clk 0:02:59.1]} 3... c5 {[%clk 0:02:45.1]}
4. e3 {[%clk 0:02:57.3]} 4... b6 {[%clk 0:02:45.3]} 5. Bd3 {[%clk 0:02:56.2]}
5... Bb7 {[%clk 0:02:45.6]} 6. Nbd2 {[%clk 0:02:56.4]} 6... Be7 {[%clk
0:02:39.8]} 7. O-O {[%clk 0:02:55.7]} 7... Nc6 {[%clk 0:02:36.8]} 8. c3 {[%clk
0:02:55.2]} 8... cxd4 {[%clk 0:02:35]} 9. exd4 {[%clk 0:02:54.7]} 9... h6 {[%clk
0:02:20.9]} 10. Bf4 {[%clk 0:02:49.6]} 10... O-O {[%clk 0:02:09.5]} 11. h3
{[%clk 0:02:47.9]} 11... Rc8 {[%clk 0:02:05.5]} 12. Re1 {[%clk 0:02:45.9]} 12...
Nd5 {[%clk 0:01:48.8]} 13. Bh2 {[%clk 0:02:44.5]} 13... f5 {[%clk 0:01:49.7]}
14. c4 {[%clk 0:02:35.1]} 14... Ndb4 {[%clk 0:01:36.2]} 15. Bf1 {[%clk
0:02:33.4]} 15... Bf6 {[%clk 0:01:26.6]} 16. a3 {[%clk 0:02:32.3]} 16... Na6
{[%clk 0:01:26.7]} 17. Nb3 {[%clk 0:02:24.1]} 17... Ne7 {[%clk 0:00:52.8]} 18.
Ne5 {[%clk 0:02:13]} 18... Nb8 {[%clk 0:00:43.9]} 19. Rc1 {[%clk 0:02:03.4]}
19... Nbc6 {[%clk 0:00:43.4]} 20. Nf3 {[%clk 0:02:04]} 20... Ng6 {[%clk
0:00:26.8]} 21. Qd2 {[%clk 0:01:53.7]} 21... Nce7 {[%clk 0:00:21.6]} 22. Be2
{[%clk 0:01:43.2]} 22... a5 {[%clk 0:00:22]} 23. Na1 {[%clk 0:01:20.1]} 23... a4
{[%clk 0:00:20.3]} 24. Bd6 {[%clk 0:01:16.5]} 24... Rc6 {[%clk 0:00:19.3]} 25.
Qb4 {[%clk 0:01:14.4]} 25... Rf7 {[%clk 0:00:17]} 26. Bd3 {[%clk 0:01:08.8]}
26... Qa8 {[%clk 0:00:16.5]} 27. Ne5 {[%clk 0:00:57.9]} 27... Bxe5 {[%clk
0:00:15.2]} 28. dxe5 {[%clk 0:00:58.1]} 28... Nc8 {[%clk 0:00:15.1]} 29. Bf1
{[%clk 0:00:52.7]} 29... Nxd6 {[%clk 0:00:14.3]} 30. exd6 {[%clk 0:00:53.6]}
30... Qa6 {[%clk 0:00:13.7]} 31. c5 {[%clk 0:00:52.6]} 31... Qa7 {[%clk
0:00:13.2]} 32. cxb6 {[%clk 0:00:51.4]} 32... Rxb6 {[%clk 0:00:13.5]} 33. Qd4
{[%clk 0:00:49.4]} 33... Bd5 {[%clk 0:00:10.7]} 34. Rc7 {[%clk 0:00:47.6]} 34...
Qa5 {[%clk 0:00:10.9]} 35. Rec1 {[%clk 0:00:45.5]} 35... Rxd6 {[%clk 0:00:10.8]}
36. Ra7 {[%clk 0:00:33.6]} 36... Qb6 {[%clk 0:00:10.8]} 37. Rxa4 {[%clk
0:00:31.8]} 37... Qxd4 {[%clk 0:00:10.5]} 38. Rxd4 {[%clk 0:00:32.7]} 38... Rb6
{[%clk 0:00:09.5]} 39. b4 {[%clk 0:00:32.6]} 39... Ne5 {[%clk 0:00:09.4]} 40.
Rc3 {[%clk 0:00:28.5]} 40... f4 {[%clk 0:00:09.4]} 41. f3 {[%clk 0:00:28.6]}
41... Rf8 {[%clk 0:00:08.8]} 42. Nc2 {[%clk 0:00:28]} 42... g5 {[%clk
0:00:08.5]} 43. a4 {[%clk 0:00:25.9]} 43... Rfb8 {[%clk 0:00:08]} 44. a5 {[%clk
0:00:25.4]} 44... R6b7 {[%clk 0:00:07.4]} 45. b5 {[%clk 0:00:25.8]} 45... Rxb5
{[%clk 0:00:06.8]} 46. Bxb5 {[%clk 0:00:26.7]} 46... Rxb5 {[%clk 0:00:07.2]} 47.
Ra4 {[%clk 0:00:26.7]} 47... Nc6 {[%clk 0:00:05.4]} 48. a6 {[%clk 0:00:26.2]}
48... Rb1+ {[%clk 0:00:03.6]} 49. Kh2 {[%clk 0:00:24.9]} 49... Na7 {[%clk
0:00:03.9]} 50. Rc7 {[%clk 0:00:23.2]} 50... Nb5 {[%clk 0:00:04]} 51. Rc8+
{[%clk 0:00:23.7]} 51... Kf7 {[%clk 0:00:03.6]} 52. Na3 {[%clk 0:00:24.4]} 52...
Ra1 {[%clk 0:00:01.9]} 53. a7 {[%clk 0:00:13.9]} 53... Rxa3 {[%clk 0:00:02.5]}
54. Rxa3 {[%clk 0:00:14]} 54... Nxa3 {[%clk 0:00:03.3]} 55. a8=Q {[%clk
0:00:12.7]} 55... Bxa8 {[%clk 0:00:03.5]} 56. Rxa8 {[%clk 0:00:13.6]} 56... Nc4
{[%clk 0:00:03.4]} 57. Kg1 {[%clk 0:00:14.1]} 57... Ne3 {[%clk 0:00:03]} 58. Kf2
{[%clk 0:00:14.2]} 58... Nf5 {[%clk 0:00:03.2]} 59. Ra7 {[%clk 0:00:13.7]} 59...
Ke7 {[%clk 0:00:03.2]} 60. Ke2 {[%clk 0:00:14.4]} 60... Nd4+ {[%clk 0:00:02.3]}
61. Kd3 {[%clk 0:00:14.5]} 61... Nc6 {[%clk 0:00:02.4]} 62. Ra8 {[%clk
0:00:13.6]} 62... Nb4+ {[%clk 0:00:02.2]} 63. Ke4 {[%clk 0:00:13.5]} 63... Nd5
{[%clk 0:00:02.7]} 64. Rh8 {[%clk 0:00:13.2]} 64... Nf6+ {[%clk 0:00:01.4]} 65.
Kd4 {[%clk 0:00:11.7]} 1-0

[Event "Late-Titled-Tuesday-Blitz-October-10-2023"]
[Site "Chess.com"]
[Date "2023.10.10"]
[Round "5"]
[White "kleinebeer98"]
[Black "SaqoChess_Twitch"]
[Result "1-0"]
[WhiteElo "2861"]
[BlackElo "2622"]
[TimeControl "180+1"]
[EndTime "14:53:39 PDT"]
[Termination "kleinebeer98 won on time"]

1. e4 {[%clk 0:02:59.4]} 1... c5 {[%clk 0:02:59.9]} 2. Nf3 {[%clk 0:02:58.7]}
2... d6 {[%clk 0:03:00.3]} 3. d4 {[%clk 0:02:58.9]} 3... cxd4 {[%clk 0:03:01.2]}
4. Nxd4 {[%clk 0:02:59.8]} 4... Nf6 {[%clk 0:03:01.9]} 5. Nc3 {[%clk 0:03:00.2]}
5... g6 {[%clk 0:03:02.7]} 6. h3 {[%clk 0:02:59.7]} 6... Bg7 {[%clk 0:03:02.4]}
7. Nf3 {[%clk 0:02:59.4]} 7... Nc6 {[%clk 0:03:02.9]} 8. Bc4 {[%clk 0:03:00]}
8... O-O {[%clk 0:03:02.5]} 9. O-O {[%clk 0:03:00.5]} 9... a6 {[%clk 0:03:02.5]}
10. Re1 {[%clk 0:02:58.4]} 10... b5 {[%clk 0:03:02.7]} 11. Bb3 {[%clk
0:02:56.9]} 11... Bb7 {[%clk 0:03:02.4]} 12. Bg5 {[%clk 0:02:55.7]} 12... h6
{[%clk 0:03:01.9]} 13. Bh4 {[%clk 0:02:55.2]} 13... Na5 {[%clk 0:02:57.6]} 14.
Qe2 {[%clk 0:02:39.2]} 14... Nxb3 {[%clk 0:02:56.2]} 15. cxb3 {[%clk 0:02:40.1]}
15... Rc8 {[%clk 0:02:54.8]} 16. Rad1 {[%clk 0:02:38.5]} 16... Qa5 {[%clk
0:02:38.5]} 17. e5 {[%clk 0:02:31.4]} 17... dxe5 {[%clk 0:02:22.7]} 18. Nxe5
{[%clk 0:02:32.3]} 18... g5 {[%clk 0:02:20.3]} 19. Bg3 {[%clk 0:02:31.6]} 19...
b4 {[%clk 0:02:16.2]} 20. Na4 {[%clk 0:02:25.6]} 20... Rcd8 {[%clk 0:01:58.2]}
21. Nc4 {[%clk 0:02:21.2]} 21... Qb5 {[%clk 0:01:23.5]} 22. Rxd8 {[%clk
0:02:07.5]} 22... Rxd8 {[%clk 0:01:21.3]} 23. Qxe7 {[%clk 0:02:08.4]} 23... Re8
{[%clk 0:01:16.4]} 24. Nd6 {[%clk 0:01:03]} 24... Rxe7 {[%clk 0:00:36.2]} 25.
Rxe7 {[%clk 0:01:03.9]} 25... Qd5 {[%clk 0:00:36.1]} 26. Rxb7 {[%clk 0:00:56.5]}
26... Nh5 {[%clk 0:00:32.5]} 27. Rb8+ {[%clk 0:00:49]} 27... Kh7 {[%clk
0:00:31]} 28. Nc4 {[%clk 0:00:46]} 28... Nxg3 {[%clk 0:00:23]} 29. fxg3 {[%clk
0:00:46.9]} 29... Qd1+ {[%clk 0:00:23.3]} 30. Kh2 {[%clk 0:00:46.1]} 30... Bd4
{[%clk 0:00:22.9]} 31. g4 {[%clk 0:00:42.5]} 31... Qg1+ {[%clk 0:00:15.7]} 32.
Kg3 {[%clk 0:00:42.8]} 32... Qe1+ {[%clk 0:00:15.5]} 33. Kf3 {[%clk 0:00:41.3]}
33... Qf2+ {[%clk 0:00:12.1]} 34. Ke4 {[%clk 0:00:41.6]} 34... Qf4+ {[%clk
0:00:12.8]} 35. Kd5 {[%clk 0:00:41.2]} 35... Qxb8 {[%clk 0:00:13]} 36. Kxd4
{[%clk 0:00:42.1]} 36... Qf4+ {[%clk 0:00:11.9]} 37. Kc5 {[%clk 0:00:43]} 37...
Qf2+ {[%clk 0:00:11.8]} 38. Kxb4 {[%clk 0:00:43.3]} 38... Qxg2 {[%clk
0:00:12.7]} 39. Nc5 {[%clk 0:00:43.6]} 39... Qxh3 {[%clk 0:00:13.2]} 40. Ne4
{[%clk 0:00:41.5]} 40... Qf3 {[%clk 0:00:12]} 41. Ncd6 {[%clk 0:00:37.2]} 41...
f5 {[%clk 0:00:11.4]} 42. gxf5 {[%clk 0:00:36.3]} 42... g4 {[%clk 0:00:11.9]}
43. Nf6+ {[%clk 0:00:27.7]} 43... Kg7 {[%clk 0:00:11]} 44. Nd7 {[%clk
0:00:26.3]} 44... Qf4+ {[%clk 0:00:09.3]} 45. Kc5 {[%clk 0:00:26.3]} 45... Qc1+
{[%clk 0:00:08]} 46. Kb6 {[%clk 0:00:25.6]} 46... Qe3+ {[%clk 0:00:06.2]} 47.
Kc7 {[%clk 0:00:25.9]} 47... Qf4 {[%clk 0:00:04.6]} 48. f6+ {[%clk 0:00:26.1]}
48... Kg6 {[%clk 0:00:05.1]} 49. f7 {[%clk 0:00:26.4]} 49... g3 {[%clk
0:00:03.5]} 50. f8=Q {[%clk 0:00:26.1]} 50... Qxf8 {[%clk 0:00:04.1]} 51. Nxf8+
{[%clk 0:00:27]} 51... Kh5 {[%clk 0:00:03.7]} 52. Ne6 {[%clk 0:00:25.7]} 52...
Kg4 {[%clk 0:00:03.1]} 53. Nc4 {[%clk 0:00:14.3]} 53... h5 {[%clk 0:00:01.2]}
54. Ne3+ {[%clk 0:00:10.5]} 54... Kf3 {[%clk 0:00:01.5]} 55. Nf5 {[%clk
0:00:11.1]} 55... g2 {[%clk 0:00:01.6]} 56. Nh4+ {[%clk 0:00:11.6]} 56... Kg3
{[%clk 0:00:02.3]} 57. Nxg2 {[%clk 0:00:12.5]} 57... Kxg2 {[%clk 0:00:03.2]} 58.
Nf4+ {[%clk 0:00:12.7]} 58... Kf3 {[%clk 0:00:04.1]} 59. Nxh5 {[%clk 0:00:13.6]}
59... Ke4 {[%clk 0:00:05]} 60. Kb6 {[%clk 0:00:14.2]} 60... Kd3 {[%clk
0:00:05.7]} 61. Kxa6 {[%clk 0:00:14.6]} 61... Kc2 {[%clk 0:00:06.6]} 62. b4
{[%clk 0:00:15.2]} 62... Kxb2 {[%clk 0:00:07.5]} 63. b5 {[%clk 0:00:16.1]} 63...
Ka3 {[%clk 0:00:08.1]} 64. b6 {[%clk 0:00:17]} 64... Kb2 {[%clk 0:00:08.9]} 65.
b7 {[%clk 0:00:17.9]} 65... Kxa2 {[%clk 0:00:09.8]} 66. b8=Q {[%clk 0:00:18.4]}
66... Ka3 {[%clk 0:00:10.7]} 67. Qb5 {[%clk 0:00:18.6]} 67... Ka2 {[%clk
0:00:11.6]} 68. Qb4 {[%clk 0:00:19]} 68... Ka1 {[%clk 0:00:12.5]} 69. Kb5 {[%clk
0:00:19.9]} 69... Ka2 {[%clk 0:00:13]} 70. Kc4 {[%clk 0:00:20.8]} 70... Ka1
{[%clk 0:00:13.9]} 71. Kc3 {[%clk 0:00:21.7]} 1-0